[Event "January 2 Late 2024"]
[Site "https://www.chess.com"]
[Date "2024.01.02"]
[Round "7"]
[White "Carrillo Marval, Maria Angelica"]
[Black "Nithyalakshmi, Sivanesan"]
[Result "0-1"]
[Board "168"]
[TimeControl "180+1"]
[WhiteFideId "3911853"]
[BlackFideId "5706955"]
[WhiteElo "2104"]
[BlackElo "2255"]
[WhiteTeam "PAN"]
[BlackTeam "MAS"]
[WhiteClock "0:00:12"]
[BlackClock "0:00:37"]

1. e4 {[%clk 0:02:59]}  e6 {[%clk 0:02:59]} 2. d4 {[%clk 0:02:31]}  d5 {[%clk 0:02:58]} 3. e5 {[%clk 0:02:31]}  Bd7 {[%clk 0:02:58]} 4. c3 {[%clk 0:02:30]}  a6 {[%clk 0:02:58]} 5. Nf3 {[%clk 0:02:30]}  Bb5 {[%clk 0:02:58]} 6. a4 {[%clk 0:02:25]}  Bxf1 {[%clk 0:02:57]} 7. Kxf1 {[%clk 0:02:25]}  c5 {[%clk 0:02:54]} 8. Be3 {[%clk 0:02:25]}  cxd4 {[%clk 0:02:48]} 9. cxd4 {[%clk 0:02:25]}  Nc6 {[%clk 0:02:48]} 10. Nc3 {[%clk 0:02:25]}  h6 {[%clk 0:02:43]} 11. g3 {[%clk 0:02:23]}  Nge7 {[%clk 0:02:43]} 12. Kg2 {[%clk 0:02:23]}  Nf5 {[%clk 0:02:43]} 13. Re1 {[%clk 0:02:23]}  Bb4 {[%clk 0:02:42]} 14. Qb3 {[%clk 0:02:05]}  Qd7 {[%clk 0:02:29]} 15. Rac1 {[%clk 0:01:07]}  O-O {[%clk 0:02:16]} 16. g4 {[%clk 0:01:04]}  Nfe7 {[%clk 0:02:04]} 17. h3 {[%clk 0:01:04]}  Rfc8 {[%clk 0:01:52]} 18. a5 {[%clk 0:01:02]}  Bxa5 {[%clk 0:01:49]} 19. Rg1 {[%clk 0:00:58]}  Bd8 {[%clk 0:01:40]} 20. Na4 {[%clk 0:00:57]}  Na5 {[%clk 0:01:16]} 21. Qa2 {[%clk 0:00:44]}  b6 {[%clk 0:01:01]} 22. Bd2 {[%clk 0:00:35]}  Nc4 {[%clk 0:01:00]} 23. Bc3 {[%clk 0:00:35]}  Ng6 {[%clk 0:00:58]} 24. b3 {[%clk 0:00:24]}  Nf4+ {[%clk 0:00:46]} 25. Kf1 {[%clk 0:00:21]}  Na5 {[%clk 0:00:45]} 26. Bxa5 {[%clk 0:00:19]}  Qb5+ {[%clk 0:00:42]} 27. Ke1 {[%clk 0:00:13]}  Rxc1+ {[%clk 0:00:37]} 28. Kd2 {[%clk 0:00:12]} 0-1

[Event "January 2 Late 2024"]
[Site "https://www.chess.com"]
[Date "2024.01.02"]
[Round "7"]
[White "Curtis, John"]
[Black "Pepino, Enrico"]
[Result "1-0"]
[Board "169"]
[TimeControl "180+1"]
[WhiteFideId "3200256"]
[BlackFideId "810908"]
[WhiteElo "2222"]
[BlackElo "2059"]
[WhiteTeam "AUS"]
[BlackTeam "ITA"]
[WhiteClock "0:00:10"]
[BlackClock "0:00:00"]

1. d4 {[%clk 0:02:59]}  Nf6 {[%clk 0:02:58]} 2. c4 {[%clk 0:02:58]}  e6 {[%clk 0:02:56]} 3. Nf3 {[%clk 0:02:56]}  d5 {[%clk 0:02:56]} 4. Nc3 {[%clk 0:02:55]}  Nbd7 {[%clk 0:02:54]} 5. e3 {[%clk 0:02:54]}  c6 {[%clk 0:02:54]} 6. Qc2 {[%clk 0:02:54]}  Bd6 {[%clk 0:02:54]} 7. e4 {[%clk 0:02:51]}  dxe4 {[%clk 0:02:53]} 8. Nxe4 {[%clk 0:02:51]}  Bb4+ {[%clk 0:02:48]} 9. Bd2 {[%clk 0:02:50]}  Bxd2+ {[%clk 0:02:46]} 10. Nexd2 {[%clk 0:02:49]}  O-O {[%clk 0:02:44]} 11. O-O-O {[%clk 0:02:35]}  Qa5 {[%clk 0:02:35]} 12. Kb1 {[%clk 0:02:31]}  c5 {[%clk 0:02:32]} 13. Nb3 {[%clk 0:02:31]}  Qb6 {[%clk 0:02:32]} 14. Bd3 {[%clk 0:02:04]}  cxd4 {[%clk 0:02:27]} 15. Nfxd4 {[%clk 0:02:04]}  Nc5 {[%clk 0:02:27]} 16. Nxc5 {[%clk 0:02:02]}  Qxc5 {[%clk 0:02:27]} 17. Nb3 {[%clk 0:01:58]}  Qc7 {[%clk 0:02:26]} 18. g3 {[%clk 0:01:56]}  Bd7 {[%clk 0:02:24]} 19. Rhe1 {[%clk 0:01:53]}  Bc6 {[%clk 0:02:19]} 20. Nd4 {[%clk 0:01:53]}  Rad8 {[%clk 0:02:17]} 21. Nxc6 {[%clk 0:01:52]}  Qxc6 {[%clk 0:02:13]} 22. f4 {[%clk 0:01:50]}  b6 {[%clk 0:02:09]} 23. a3 {[%clk 0:01:32]}  a5 {[%clk 0:02:09]} 24. Bf1 {[%clk 0:01:31]}  Qc5 {[%clk 0:02:04]} 25. Bd3 {[%clk 0:01:21]}  Rd4 {[%clk 0:02:00]} 26. Bf1 {[%clk 0:01:14]}  Rfd8 {[%clk 0:02:00]} 27. Rxd4 {[%clk 0:01:14]}  Qxd4 {[%clk 0:01:57]} 28. Rc1 {[%clk 0:01:14]}  Ne4 {[%clk 0:01:51]} 29. Bg2 {[%clk 0:01:07]}  Nc5 {[%clk 0:01:42]} 30. Bf3 {[%clk 0:01:05]}  a4 {[%clk 0:01:38]} 31. Rd1 {[%clk 0:01:05]}  Qf6 {[%clk 0:01:37]} 32. Rxd8+ {[%clk 0:00:59]}  Qxd8 {[%clk 0:01:36]} 33. Bc6 {[%clk 0:00:59]}  h5 {[%clk 0:01:03]} 34. Bxa4 {[%clk 0:00:58]}  Qd4 {[%clk 0:00:59]} 35. Bc6 {[%clk 0:00:50]}  h4 {[%clk 0:00:52]} 36. b4 {[%clk 0:00:50]}  Na6 {[%clk 0:00:47]} 37. Ka2 {[%clk 0:00:40]}  hxg3 {[%clk 0:00:44]} 38. hxg3 {[%clk 0:00:40]}  Qe3 {[%clk 0:00:43]} 39. f5 {[%clk 0:00:30]}  Qxg3 {[%clk 0:00:37]} 40. fxe6 {[%clk 0:00:30]}  fxe6 {[%clk 0:00:37]} 41. Qe4 {[%clk 0:00:27]}  Qf2+ {[%clk 0:00:31]} 42. Kb3 {[%clk 0:00:27]}  Qf5 {[%clk 0:00:27]} 43. Ka4 {[%clk 0:00:20]}  Nc7 {[%clk 0:00:24]} 44. Qg2 {[%clk 0:00:15]}  Kf7 {[%clk 0:00:19]} 45. c5 {[%clk 0:00:15]}  bxc5 {[%clk 0:00:19]} 46. b5 {[%clk 0:00:15]}  Qf4+ {[%clk 0:00:05]} 47. Ka5 {[%clk 0:00:15]}  Qd4 {[%clk 0:00:02]} 48. Qf3+ {[%clk 0:00:09]}  Kg8 {[%clk 0:00:00]} 49. b6 {[%clk 0:00:10]} 1-0

[Event "January 2 Late 2024"]
[Site "https://www.chess.com"]
[Date "2024.01.02"]
[Round "7"]
[White "Reinecke, Katharina"]
[Black "MiguelEduardoGB"]
[Result "0-1"]
[Board "170"]
[TimeControl "180+1"]
[WhiteFideId "12929727"]
[WhiteElo "2024"]
[BlackElo "2198"]
[WhiteTeam "GER"]
[WhiteClock "0:00:00"]
[BlackClock "0:00:15"]

1. d4 {[%clk 0:03:00]}  d5 {[%clk 0:02:58]} 2. c4 {[%clk 0:02:58]}  Nc6 {[%clk 0:02:57]} 3. Nf3 {[%clk 0:02:53]}  Bg4 {[%clk 0:02:56]} 4. e3 {[%clk 0:02:51]}  e6 {[%clk 0:02:53]} 5. Nc3 {[%clk 0:02:48]}  Nf6 {[%clk 0:02:50]} 6. h3 {[%clk 0:02:45]}  Bh5 {[%clk 0:02:45]} 7. Be2 {[%clk 0:02:44]}  Be7 {[%clk 0:02:42]} 8. O-O {[%clk 0:02:43]}  O-O {[%clk 0:02:42]} 9. cxd5 {[%clk 0:02:41]}  exd5 {[%clk 0:02:41]} 10. a3 {[%clk 0:02:36]}  Bd6 {[%clk 0:02:41]} 11. b4 {[%clk 0:02:34]}  Ne7 {[%clk 0:02:41]} 12. Nb5 {[%clk 0:02:30]}  Ne4 {[%clk 0:02:36]} 13. Nxd6 {[%clk 0:02:26]}  Qxd6 {[%clk 0:02:37]} 14. Qc2 {[%clk 0:02:17]}  c6 {[%clk 0:02:35]} 15. Bb2 {[%clk 0:02:14]}  f5 {[%clk 0:02:12]} 16. Ne5 {[%clk 0:02:08]}  Be8 {[%clk 0:01:44]} 17. Bd3 {[%clk 0:01:53]}  Ng6 {[%clk 0:01:31]} 18. f4 {[%clk 0:01:47]}  Nxe5 {[%clk 0:01:14]} 19. dxe5 {[%clk 0:01:44]}  Qg6 {[%clk 0:01:14]} 20. Bxe4 {[%clk 0:01:37]}  fxe4 {[%clk 0:01:14]} 21. Bd4 {[%clk 0:01:24]}  Bd7 {[%clk 0:01:14]} 22. Kh2 {[%clk 0:01:19]}  Rf5 {[%clk 0:01:14]} 23. g4 {[%clk 0:01:09]}  Rff8 {[%clk 0:01:13]} 24. f5 {[%clk 0:01:04]}  Qh6 {[%clk 0:01:13]} 25. e6 {[%clk 0:01:01]}  Be8 {[%clk 0:01:11]} 26. Bc5 {[%clk 0:00:46]}  Rf6 {[%clk 0:01:08]} 27. Be7 {[%clk 0:00:45]}  Qxe3 {[%clk 0:01:03]} 28. Bxf6 {[%clk 0:00:42]}  gxf6 {[%clk 0:01:04]} 29. Qb2 {[%clk 0:00:28]}  d4 {[%clk 0:00:55]} 30. Rae1 {[%clk 0:00:27]}  Qd3 {[%clk 0:00:40]} 31. Rd1 {[%clk 0:00:23]}  Qc3 {[%clk 0:00:40]} 32. Qxc3 {[%clk 0:00:22]}  dxc3 {[%clk 0:00:41]} 33. Rc1 {[%clk 0:00:17]}  a5 {[%clk 0:00:41]} 34. Rxc3 {[%clk 0:00:16]}  axb4 {[%clk 0:00:42]} 35. axb4 {[%clk 0:00:17]}  Ra2+ {[%clk 0:00:42]} 36. Kg3 {[%clk 0:00:16]}  Rb2 {[%clk 0:00:42]} 37. Rc4 {[%clk 0:00:15]}  e3 {[%clk 0:00:42]} 38. Re1 {[%clk 0:00:12]}  e2 {[%clk 0:00:42]} 39. Kf2 {[%clk 0:00:12]}  Rb3 {[%clk 0:00:29]} 40. h4 {[%clk 0:00:10]}  Kf8 {[%clk 0:00:29]} 41. Rxe2 {[%clk 0:00:10]}  b5 {[%clk 0:00:30]} 42. Rd4 {[%clk 0:00:08]}  Rc3 {[%clk 0:00:27]} 43. e7+ {[%clk 0:00:08]}  Kf7 {[%clk 0:00:27]} 44. Re6 {[%clk 0:00:08]}  c5 {[%clk 0:00:22]} 45. Rdd6 {[%clk 0:00:07]}  cxb4 {[%clk 0:00:20]} 46. Rxf6+ {[%clk 0:00:06]}  Kxe7 {[%clk 0:00:21]} 47. Rde6+ {[%clk 0:00:06]}  Kd7 {[%clk 0:00:22]} 48. Rd6+ {[%clk 0:00:07]}  Kc7 {[%clk 0:00:22]} 49. Rb6 {[%clk 0:00:06]}  Bc6 {[%clk 0:00:21]} 50. Ra6 {[%clk 0:00:05]}  b3 {[%clk 0:00:20]} 51. Ra1 {[%clk 0:00:04]}  b2 {[%clk 0:00:21]} 52. Rb1 {[%clk 0:00:04]}  Rb3 {[%clk 0:00:22]} 53. Rf7+ {[%clk 0:00:03]}  Kb6 {[%clk 0:00:22]} 54. Rxh7 {[%clk 0:00:03]}  Be4 {[%clk 0:00:22]} 55. Rh6+ {[%clk 0:00:03]}  Ka5 {[%clk 0:00:22]} 56. f6 {[%clk 0:00:01]}  Rf3+ {[%clk 0:00:18]} 57. Ke2 {[%clk 0:00:00]}  Rf4 {[%clk 0:00:15]} 0-1

[Event "January 2 Late 2024"]
[Site "https://www.chess.com"]
[Date "2024.01.02"]
[Round "7"]
[White "yujiarun18"]
[Black "Novak, Ratko"]
[Result "0-1"]
[Board "176"]
[TimeControl "180+1"]
[BlackFideId "14511827"]
[WhiteElo "2153"]
[BlackElo "2362"]
[BlackTeam "CRO"]
[WhiteClock "0:00:12"]
[BlackClock "0:00:13"]

1. e4 {[%clk 0:03:00]}  d5 {[%clk 0:02:58]} 2. exd5 {[%clk 0:03:00]}  c6 {[%clk 0:02:58]} 3. dxc6 {[%clk 0:02:58]}  Nxc6 {[%clk 0:02:59]} 4. Nc3 {[%clk 0:02:58]}  e5 {[%clk 0:02:59]} 5. Bc4 {[%clk 0:02:45]}  Bc5 {[%clk 0:02:55]} 6. Nge2 {[%clk 0:02:44]}  Nf6 {[%clk 0:02:54]} 7. O-O {[%clk 0:02:45]}  O-O {[%clk 0:02:54]} 8. d3 {[%clk 0:02:45]}  Bg4 {[%clk 0:02:53]} 9. h3 {[%clk 0:02:44]}  Bh5 {[%clk 0:02:52]} 10. Bg5 {[%clk 0:02:43]}  Be7 {[%clk 0:02:43]} 11. Be3 {[%clk 0:02:40]}  Kh8 {[%clk 0:02:42]} 12. Qd2 {[%clk 0:02:40]}  a6 {[%clk 0:02:35]} 13. a4 {[%clk 0:02:39]}  Bb4 {[%clk 0:02:34]} 14. f4 {[%clk 0:02:33]}  Bxe2 {[%clk 0:02:17]} 15. Qxe2 {[%clk 0:02:31]}  Nd4 {[%clk 0:02:01]} 16. Qd2 {[%clk 0:02:24]}  exf4 {[%clk 0:01:55]} 17. Bxf4 {[%clk 0:02:24]}  Nd5 {[%clk 0:01:53]} 18. Bxd5 {[%clk 0:02:17]}  Bxc3 {[%clk 0:01:53]} 19. bxc3 {[%clk 0:02:15]}  Qxd5 {[%clk 0:01:24]} 20. cxd4 {[%clk 0:02:15]}  Qxd4+ {[%clk 0:01:24]} 21. Be3 {[%clk 0:02:15]}  Qh4 {[%clk 0:01:21]} 22. Kh2 {[%clk 0:02:11]}  Rac8 {[%clk 0:01:21]} 23. c3 {[%clk 0:02:03]}  f5 {[%clk 0:01:13]} 24. Bg5 {[%clk 0:01:59]}  Qh5 {[%clk 0:01:03]} 25. Rab1 {[%clk 0:01:55]}  h6 {[%clk 0:01:03]} 26. Be3 {[%clk 0:01:48]}  Rf7 {[%clk 0:01:03]} 27. Rb6 {[%clk 0:01:42]}  Qh4 {[%clk 0:00:59]} 28. Bxh6 {[%clk 0:01:40]}  Qxa4 {[%clk 0:00:53]} 29. Be3 {[%clk 0:01:31]}  Qa3 {[%clk 0:00:48]} 30. Bd4 {[%clk 0:01:30]}  Kg8 {[%clk 0:00:45]} 31. Rfb1 {[%clk 0:01:27]}  Rcc7 {[%clk 0:00:44]} 32. Be5 {[%clk 0:01:25]}  Rce7 {[%clk 0:00:42]} 33. d4 {[%clk 0:01:24]}  Qa4 {[%clk 0:00:37]} 34. Bd6 {[%clk 0:01:23]}  Rd7 {[%clk 0:00:34]} 35. Qf4 {[%clk 0:01:21]}  Qc2 {[%clk 0:00:29]} 36. R6b3 {[%clk 0:01:08]}  a5 {[%clk 0:00:28]} 37. R1b2 {[%clk 0:01:02]}  Qd3 {[%clk 0:00:25]} 38. Ra3 {[%clk 0:00:57]}  Qa6 {[%clk 0:00:19]} 39. Be5 {[%clk 0:00:46]}  b5 {[%clk 0:00:19]} 40. Qd2 {[%clk 0:00:41]}  Rfe7 {[%clk 0:00:11]} 41. Qd3 {[%clk 0:00:40]}  Rxe5 {[%clk 0:00:10]} 42. Qg3 {[%clk 0:00:36]}  Red5 {[%clk 0:00:10]} 43. Qb8+ {[%clk 0:00:33]}  Rd8 {[%clk 0:00:10]} 44. Qf4 {[%clk 0:00:32]}  a4 {[%clk 0:00:08]} 45. Rb4 {[%clk 0:00:32]}  Qd6 {[%clk 0:00:08]} 46. Kg3 {[%clk 0:00:27]}  Qxf4+ {[%clk 0:00:06]} 47. Kxf4 {[%clk 0:00:27]}  Kf7 {[%clk 0:00:06]} 48. Ra2 {[%clk 0:00:26]}  Kf6 {[%clk 0:00:06]} 49. Ke3 {[%clk 0:00:23]}  g5 {[%clk 0:00:06]} 50. g3 {[%clk 0:00:22]}  Re8+ {[%clk 0:00:07]} 51. Kf3 {[%clk 0:00:22]}  Rc8 {[%clk 0:00:06]} 52. Ra3 {[%clk 0:00:20]}  Rcd8 {[%clk 0:00:05]} 53. c4 {[%clk 0:00:16]}  bxc4 {[%clk 0:00:05]} 54. Rxc4 {[%clk 0:00:15]}  Rxd4 {[%clk 0:00:05]} 55. Raxa4 {[%clk 0:00:15]}  Rd3+ {[%clk 0:00:05]} 56. Kg2 {[%clk 0:00:14]}  Rd2+ {[%clk 0:00:06]} 57. Kf1 {[%clk 0:00:14]}  Rd1+ {[%clk 0:00:05]} 58. Ke2 {[%clk 0:00:14]}  R8d2+ {[%clk 0:00:06]} 59. Ke3 {[%clk 0:00:13]}  Rd3+ {[%clk 0:00:06]} 60. Ke2 {[%clk 0:00:13]}  R1d2+ {[%clk 0:00:07]} 61. Ke1 {[%clk 0:00:13]}  Rg2 {[%clk 0:00:05]} 62. Rc6+ {[%clk 0:00:10]}  Ke5 {[%clk 0:00:05]} 63. Rc5+ {[%clk 0:00:09]}  Rd5 {[%clk 0:00:05]} 64. Rc3 {[%clk 0:00:04]}  Rh2 {[%clk 0:00:04]} 65. g4 {[%clk 0:00:04]}  Rb5 {[%clk 0:00:04]} 66. Ra1 {[%clk 0:00:01]}  f4 {[%clk 0:00:03]} 67. Rd3 {[%clk 0:00:01]}  Rd5 {[%clk 0:00:04]} 68. Rxd5+ {[%clk 0:00:01]}  Kxd5 {[%clk 0:00:04]} 69. Ra5+ {[%clk 0:00:02]}  Ke4 {[%clk 0:00:04]} 70. Rxg5 {[%clk 0:00:02]}  Kf3 {[%clk 0:00:05]} 71. Kd1 {[%clk 0:00:02]}  Rxh3 {[%clk 0:00:05]} 72. Rg6 {[%clk 0:00:02]}  Ke3 {[%clk 0:00:05]} 73. Rg8 {[%clk 0:00:03]}  Rh1+ {[%clk 0:00:04]} 74. Kc2 {[%clk 0:00:02]}  f3 {[%clk 0:00:05]} 75. g5 {[%clk 0:00:02]}  f2 {[%clk 0:00:05]} 76. Re8+ {[%clk 0:00:02]}  Kf4 {[%clk 0:00:06]} 77. Rf8+ {[%clk 0:00:02]}  Ke3 {[%clk 0:00:06]} 78. Re8+ {[%clk 0:00:03]}  Kd4 {[%clk 0:00:06]} 79. Rd8+ {[%clk 0:00:03]}  Ke5 {[%clk 0:00:07]} 80. Re8+ {[%clk 0:00:03]}  Kd6 {[%clk 0:00:07]} 81. Rf8 {[%clk 0:00:04]}  f1=Q {[%clk 0:00:07]} 82. Rxf1 {[%clk 0:00:03]}  Rxf1 {[%clk 0:00:08]} 83. g6 {[%clk 0:00:04]}  Rg1 {[%clk 0:00:08]} 84. Kd3 {[%clk 0:00:04]}  Rxg6 {[%clk 0:00:08]} 85. Ke4 {[%clk 0:00:05]}  Ke6 {[%clk 0:00:09]} 86. Kf3 {[%clk 0:00:06]}  Rg5 {[%clk 0:00:09]} 87. Ke3 {[%clk 0:00:07]}  Rb5 {[%clk 0:00:10]} 88. Kd2 {[%clk 0:00:08]}  Kd5 {[%clk 0:00:10]} 89. Ke3 {[%clk 0:00:09]}  Rb4 {[%clk 0:00:11]} 90. Kd3 {[%clk 0:00:09]}  Rb3+ {[%clk 0:00:11]} 91. Kc2 {[%clk 0:00:10]}  Rh3 {[%clk 0:00:12]} 92. Kd2 {[%clk 0:00:10]}  Ke4 {[%clk 0:00:13]} 93. Ke2 {[%clk 0:00:11]}  Rh2+ {[%clk 0:00:13]} 94. Kf1 {[%clk 0:00:12]}  Ra2 {[%clk 0:00:13]} 95. Kg1 {[%clk 0:00:12]}  Kf3 {[%clk 0:00:13]} 96. Kh1 {[%clk 0:00:12]}  Kg3 {[%clk 0:00:13]} 0-1

[Event "January 2 Late 2024"]
[Site "https://www.chess.com"]
[Date "2024.01.02"]
[Round "7"]
[White "Akhayan"]
[Black "Ferriz Barrios, Andres"]
[Result "0-1"]
[Board "177"]
[TimeControl "180+1"]
[BlackFideId "5104467"]
[WhiteElo "2358"]
[BlackElo "2142"]
[BlackTeam "MEX"]
[WhiteClock "0:00:21"]
[BlackClock "0:00:39"]

1. e4 {[%clk 0:02:44]}  e6 {[%clk 0:02:53]} 2. d4 {[%clk 0:02:43]}  d5 {[%clk 0:02:53]} 3. Nc3 {[%clk 0:02:44]}  dxe4 {[%clk 0:02:53]} 4. Nxe4 {[%clk 0:02:43]}  Nd7 {[%clk 0:02:54]} 5. Bd3 {[%clk 0:02:40]}  Ngf6 {[%clk 0:02:50]} 6. Qe2 {[%clk 0:02:41]}  b6 {[%clk 0:02:47]} 7. Nf3 {[%clk 0:02:40]}  Bb7 {[%clk 0:02:41]} 8. O-O {[%clk 0:02:40]}  Be7 {[%clk 0:02:30]} 9. c4 {[%clk 0:02:37]}  O-O {[%clk 0:02:31]} 10. b3 {[%clk 0:02:37]}  Re8 {[%clk 0:02:31]} 11. Bb2 {[%clk 0:02:38]}  Nxe4 {[%clk 0:02:29]} 12. Bxe4 {[%clk 0:02:38]}  Bxe4 {[%clk 0:02:30]} 13. Qxe4 {[%clk 0:02:38]}  Bf6 {[%clk 0:02:31]} 14. Rad1 {[%clk 0:02:36]}  Qc8 {[%clk 0:02:30]} 15. Rfe1 {[%clk 0:02:35]}  c5 {[%clk 0:02:30]} 16. h4 {[%clk 0:02:35]}  cxd4 {[%clk 0:02:27]} 17. Bxd4 {[%clk 0:02:34]}  Nc5 {[%clk 0:02:28]} 18. Qg4 {[%clk 0:02:28]}  Bxd4 {[%clk 0:02:25]} 19. Nxd4 {[%clk 0:02:27]}  e5 {[%clk 0:02:21]} 20. Nf5 {[%clk 0:02:26]}  g6 {[%clk 0:02:21]} 21. Ne3 {[%clk 0:02:18]}  f5 {[%clk 0:02:14]} 22. Qg5 {[%clk 0:02:17]}  Kg7 {[%clk 0:02:03]} 23. Nd5 {[%clk 0:02:15]}  Qd8 {[%clk 0:02:03]} 24. Qg3 {[%clk 0:02:10]}  f4 {[%clk 0:02:00]} 25. Qg4 {[%clk 0:02:08]}  Qc8 {[%clk 0:01:57]} 26. Qg5 {[%clk 0:02:01]}  Qd8 {[%clk 0:01:57]} 27. Rxe5 {[%clk 0:02:01]}  Qxg5 {[%clk 0:01:54]} 28. Rxg5 {[%clk 0:02:00]}  Rad8 {[%clk 0:01:39]} 29. Rg4 {[%clk 0:01:53]}  Rf8 {[%clk 0:01:32]} 30. Kh2 {[%clk 0:01:32]}  Rf5 {[%clk 0:01:27]} 31. Re1 {[%clk 0:01:20]}  h5 {[%clk 0:01:20]} 32. Rxf4 {[%clk 0:01:16]}  Rdxd5 {[%clk 0:01:20]} 33. cxd5 {[%clk 0:01:11]}  Rxf4 {[%clk 0:01:13]} 34. d6 {[%clk 0:01:06]}  Rxh4+ {[%clk 0:01:08]} 35. Kg3 {[%clk 0:01:05]}  Rd4 {[%clk 0:01:09]} 36. Re7+ {[%clk 0:01:03]}  Kf6 {[%clk 0:01:07]} 37. Rxa7 {[%clk 0:01:03]}  Rxd6 {[%clk 0:01:06]} 38. Ra8 {[%clk 0:01:02]}  Kg5 {[%clk 0:01:02]} 39. f4+ {[%clk 0:00:59]}  Kf5 {[%clk 0:01:02]} 40. Rf8+ {[%clk 0:00:59]}  Rf6 {[%clk 0:01:02]} 41. Rb8 {[%clk 0:00:58]}  Ne4+ {[%clk 0:01:01]} 42. Kf3 {[%clk 0:00:59]}  Nc5 {[%clk 0:00:59]} 43. b4 {[%clk 0:00:56]}  Ne6 {[%clk 0:00:58]} 44. g3 {[%clk 0:00:50]}  Nd4+ {[%clk 0:00:58]} 45. Ke3 {[%clk 0:00:51]}  Nc2+ {[%clk 0:00:53]} 46. Kf3 {[%clk 0:00:45]}  Nxb4 {[%clk 0:00:54]} 47. a4 {[%clk 0:00:45]}  Nd3 {[%clk 0:00:49]} 48. Re8 {[%clk 0:00:44]}  g5 {[%clk 0:00:43]} 49. fxg5 {[%clk 0:00:39]}  Kxg5+ {[%clk 0:00:43]} 50. Ke4 {[%clk 0:00:35]}  Nc5+ {[%clk 0:00:43]} 51. Ke5 {[%clk 0:00:32]}  Nxa4 {[%clk 0:00:39]} 52. Rg8+ {[%clk 0:00:21]}  Rg6 {[%clk 0:00:39]} 0-1

[Event "January 2 Late 2024"]
[Site "https://www.chess.com"]
[Date "2024.01.02"]
[Round "7"]
[White "De Souza, Arthur Olintho"]
[Black "Kujawski, Adam"]
[Result "0-1"]
[Board "179"]
[TimeControl "180+1"]
[WhiteFideId "2116200"]
[BlackFideId "1100920"]
[WhiteElo "2077"]
[BlackElo "2306"]
[WhiteTeam "BRA"]
[BlackTeam "POL"]
[WhiteClock "0:02:19"]
[BlackClock "0:01:18"]

1. e4 {[%clk 0:02:59]}  e6 {[%clk 0:02:58]} 2. Nc3 {[%clk 0:02:59]}  d5 {[%clk 0:02:58]} 3. Nf3 {[%clk 0:03:00]}  d4 {[%clk 0:02:57]} 4. Ne2 {[%clk 0:02:59]}  Nf6 {[%clk 0:02:57]} 5. Nexd4 {[%clk 0:02:58]}  Nxe4 {[%clk 0:02:56]} 6. Bd3 {[%clk 0:02:58]}  Nf6 {[%clk 0:02:48]} 7. O-O {[%clk 0:02:57]}  Be7 {[%clk 0:02:43]} 8. b3 {[%clk 0:02:56]}  O-O {[%clk 0:01:36]} 9. Bb2 {[%clk 0:02:41]}  a6 {[%clk 0:01:36]} 10. Qe2 {[%clk 0:02:40]}  c5 {[%clk 0:01:32]} 11. Ne5 {[%clk 0:02:22]}  cxd4 {[%clk 0:01:30]} 12. Ng4 {[%clk 0:02:23]}  Nc6 {[%clk 0:01:24]} 13. Nxf6+ {[%clk 0:02:23]}  Bxf6 {[%clk 0:01:23]} 14. Qe4 {[%clk 0:02:23]}  g6 {[%clk 0:01:23]} 15. h4 {[%clk 0:02:19]}  Qd5 {[%clk 0:01:18]} 0-1

[Event "January 2 Late 2024"]
[Site "https://www.chess.com"]
[Date "2024.01.02"]
[Round "7"]
[White "Alves Campelo, Danilo Cesar De L"]
[Black "Minina, Veronika"]
[Result "1-0"]
[Board "182"]
[TimeControl "180+1"]
[WhiteFideId "2123657"]
[BlackFideId "4174780"]
[WhiteElo "1940"]
[BlackElo "2262"]
[WhiteTeam "BRA"]
[BlackTeam "RUS"]
[WhiteClock "0:00:14"]
[BlackClock "0:00:00"]

1. e4 {[%clk 0:03:00]}  c5 {[%clk 0:02:52]} 2. Nf3 {[%clk 0:03:01]}  Nc6 {[%clk 0:02:52]} 3. d4 {[%clk 0:03:02]}  cxd4 {[%clk 0:02:53]} 4. Nxd4 {[%clk 0:03:02]}  g6 {[%clk 0:02:53]} 5. Be3 {[%clk 0:03:01]}  Nf6 {[%clk 0:02:52]} 6. Bd3 {[%clk 0:02:52]}  Bg7 {[%clk 0:02:39]} 7. c4 {[%clk 0:02:42]}  d6 {[%clk 0:02:25]} 8. Nc3 {[%clk 0:02:40]}  Ng4 {[%clk 0:02:25]} 9. Nxc6 {[%clk 0:02:38]}  Nxe3 {[%clk 0:02:05]} 10. Nxd8 {[%clk 0:02:36]}  Nxd1 {[%clk 0:02:05]} 11. Rxd1 {[%clk 0:02:05]}  Kxd8 {[%clk 0:02:04]} 12. O-O {[%clk 0:02:04]}  Bg4 {[%clk 0:02:02]} 13. Rd2 {[%clk 0:02:01]}  a6 {[%clk 0:01:59]} 14. Nd5 {[%clk 0:02:01]}  Rc8 {[%clk 0:01:26]} 15. f4 {[%clk 0:01:47]}  Rc6 {[%clk 0:01:18]} 16. b3 {[%clk 0:01:27]}  Bc8 {[%clk 0:01:12]} 17. Be2 {[%clk 0:01:21]}  e6 {[%clk 0:01:07]} 18. Ne3 {[%clk 0:01:02]}  Ke7 {[%clk 0:01:02]} 19. Rfd1 {[%clk 0:01:02]}  f5 {[%clk 0:00:23]} 20. exf5 {[%clk 0:00:51]}  gxf5 {[%clk 0:00:23]} 21. g4 {[%clk 0:00:42]}  fxg4 {[%clk 0:00:19]} 22. Bxg4 {[%clk 0:00:39]}  Bc3 {[%clk 0:00:19]} 23. Rd3 {[%clk 0:00:39]}  Ba5 {[%clk 0:00:20]} 24. f5 {[%clk 0:00:37]}  Bb6 {[%clk 0:00:20]} 25. Kf1 {[%clk 0:00:33]}  Rf8 {[%clk 0:00:18]} 26. Ke2 {[%clk 0:00:23]}  exf5 {[%clk 0:00:17]} 27. Nd5+ {[%clk 0:00:23]}  Kd7 {[%clk 0:00:14]} 28. Rf3 {[%clk 0:00:17]}  Kd8 {[%clk 0:00:09]} 29. Bh3 {[%clk 0:00:16]}  Bc5 {[%clk 0:00:08]} 30. Rdf1 {[%clk 0:00:15]}  Re8+ {[%clk 0:00:06]} 31. Kd3 {[%clk 0:00:14]}  b5 {[%clk 0:00:06]} 32. Bxf5 {[%clk 0:00:11]}  bxc4+ {[%clk 0:00:05]} 33. bxc4 {[%clk 0:00:12]}  Bxf5+ {[%clk 0:00:04]} 34. Rxf5 {[%clk 0:00:13]}  Ba3 {[%clk 0:00:01]} 35. Rf8 {[%clk 0:00:14]}  Rxf8 {[%clk 0:00:01]} 36. Rxf8+ {[%clk 0:00:14]}  Kd7 {[%clk 0:00:02]} 37. Rf7+ {[%clk 0:00:15]}  Ke6 {[%clk 0:00:02]} 38. Re7+ {[%clk 0:00:15]}  Kf5 {[%clk 0:00:02]} 39. Rxh7 {[%clk 0:00:16]}  Bc5 {[%clk 0:00:02]} 40. Ne7+ {[%clk 0:00:14]}  Ke6 {[%clk 0:00:00]} 41. Nxc6 {[%clk 0:00:14]} 1-0